bitfinex-derivatives/quotes_ETHF0:USTF0_20260123
["timestamp","ask_amount","ask_price","bid_price","bid_amount"]
[1769163465715,0.85686097,2928.6,2927.8,0.9148103]
[1769163465916,0.17092,2929.2,2927.9,4.53310039]
[1769163466121,0.85709377,2929.1,2927.9,4.53310039]
[1769163466324,0.85709377,2929.0,2927.9,4.53310039]
[1769163466525,0.85709377,2928.9,2927.9,4.53310039]
[1769163466725,0.85709377,2928.8,2927.9,4.53310039]
[1769163466930,0.85709377,2928.7,2927.7,8.627]
[1769163467125,0.85709377,2928.6,2927.6,0.9148103]
[1769163467326,0.85730103,2928.5,2927.6,8.6148103]
[1769163467530,4.46371487,2929.0,2927.6,8.6148103]
[1769163467827,0.85730929,2928.9,2927.6,8.6148103]
[1769163468027,0.85730929,2928.8,2927.6,8.6148103]
[1769163468226,0.85730929,2928.7,2927.6,8.6148103]
[1769163468522,0.85730929,2928.6,2927.6,8.6148103]
[1769163468726,0.85730929,2928.5,2927.6,8.6148103]
[1769163468928,4.46371487,2929.0,2927.6,0.9148103]
[1769163469127,0.85746328,2928.9,2927.6,9.5438103]
[1769163469320,0.85746328,2928.8,2927.6,9.5438103]
[1769163469518,0.85746328,2928.7,2927.6,9.5438103]
[1769163469836,0.85746328,2928.6,2927.6,9.5438103]
[1769163470030,0.85746328,2928.5,2927.6,9.5438103]
[1769163470225,4.46371487,2929.0,2927.6,9.5438103]
[1769163470528,0.85773796,2928.9,2927.6,9.5438103]
[1769163470729,0.85773796,2928.8,2927.6,9.5438103]
[1769163470929,0.85773796,2928.7,2927.6,9.5438103]
[1769163471230,0.85773796,2928.6,2927.6,9.5438103]
[1769163471431,0.85773796,2928.5,2927.6,9.5438103]
[1769163471632,0.85773796,2928.4,2927.6,9.5438103]
[1769163471929,4.46371487,2929.0,2927.6,9.5438103]
[1769163472126,0.85784768,2928.9,2927.6,9.5438103]
[1769163472328,0.85784768,2928.8,2927.6,9.5438103]
[1769163472528,0.85784768,2928.7,2927.6,9.5438103]
[1769163472731,0.85784768,2928.6,2927.6,9.5438103]
[1769163472934,0.85784768,2928.5,2927.6,9.5438103]
[1769163473130,0.85784768,2928.4,2927.6,9.5438103]
[1769163473431,4.46371487,2929.0,2927.6,9.5438103]
[1769163473730,0.85809662,2928.9,2927.6,9.5438103]
[1769163473931,1.77290692,2928.8,2927.6,5.219]
[1769163474127,0.85809662,2928.7,2927.6,9.75210039]
[1769163476735,0.85809662,2928.7,2927.6,0.9148103]
[1769163477832,0.9148103,2928.5,2927.5,0.00512724]
[1769163478035,0.85809662,2928.4,2927.5,0.00512724]
[1769163480033,3.54890457,2928.7,2927.5,0.00512724]
[1769163480234,0.85876866,2928.6,2927.5,0.00512724]
[1769163480434,0.85876866,2928.5,2927.5,0.00512724]
[1769163480635,0.85876866,2928.4,2927.5,0.00512724]
[1769163480836,0.9148103,2928.8,2927.5,0.00512724]
[1769163481134,0.85881674,2928.7,2927.5,0.00512724]
[1769163481334,0.85881674,2928.6,2927.5,0.00512724]
[1769163481536,0.85881674,2928.5,2927.5,0.00512724]
[1769163481736,0.85881674,2928.4,2927.5,0.00512724]
[1769163481929,4.46371487,2928.8,2927.5,0.00512724]
[1769163482136,3.27204951,2928.6,2927.5,0.00512724]
[1769163482335,0.85878805,2928.5,2927.5,0.00512724]
[1769163482638,0.85878805,2928.4,2927.5,0.00512724]
[1769163482937,3.27204951,2928.6,2927.5,0.00512724]
[1769163483237,0.85870018,2928.5,2927.5,0.00512724]
[1769163483435,0.85870018,2928.4,2927.5,0.00512724]
[1769163483638,3.27204951,2928.6,2927.5,0.00512724]
[1769163483825,1.77344691,2928.5,2927.5,0.00512724]
[1769163484030,0.85863661,2928.4,2927.5,0.00512724]
[1769163484941,0.9148103,2928.5,2927.5,0.00512724]
[1769163486738,3.27204951,2928.6,2927.5,0.00512724]
[1769163487037,0.85851765,2928.5,2927.5,0.00512724]
[1769163487339,0.17095,2928.7,2927.6,0.9148103]
[1769163487530,0.8585379,2928.6,2927.6,0.9148103]
[1769163487734,0.17095,2928.7,2927.5,0.00512724]
[1769163488039,0.85849644,2928.6,2927.5,0.00512724]
[1769163488237,0.17095,2928.7,2927.5,0.00512724]
[1769163488437,0.85853278,2928.6,2927.5,0.00512724]
[1769163488738,0.17095,2928.7,2927.5,0.00512724]
[1769163488933,0.85853292,2928.6,2927.5,0.00512724]
[1769163489240,0.17095,2928.7,2927.5,0.00512724]
[1769163489432,0.8585109,2928.6,2927.5,0.00512724]
[1769163489634,3.87506652,2928.7,2927.5,0.00512724]
[1769163489839,3.70411652,2928.4,2927.5,0.00512724]
[1769163491536,0.17096,2928.6,2927.5,0.00512724]
[1769163491736,0.858472,2928.5,2927.5,0.00512724]
[1769163492040,0.17096,2928.6,2927.5,0.00512724]
[1769163492236,0.85845342,2928.5,2927.5,0.00512724]
[1769163492432,0.17096,2928.6,2927.5,0.00512724]
[1769163492630,0.85846701,2928.5,2927.5,0.00512724]
[1769163492843,0.17096,2928.6,2927.5,0.00512724]
[1769163493046,0.85846711,2928.5,2927.5,0.00512724]
[1769163493236,0.17096,2928.6,2927.5,0.00512724]
[1769163493437,0.85848901,2928.5,2927.5,0.00512724]
[1769163493734,0.17096,2928.6,2927.5,0.00512724]
[1769163493936,0.85848884,2928.5,2927.5,0.00512724]
[1769163494137,0.17096,2928.6,2927.5,0.00512724]
[1769163494341,0.8585233,2928.5,2927.5,0.00512724]
[1769163494637,0.17096,2928.6,2927.5,0.00512724]
[1769163494837,0.85851629,2928.5,2927.5,0.00512724]
[1769163495035,3.87503652,2929.3,2927.6,3.51122172]
[1769163495239,0.8584097,2929.2,2927.6,3.51122172]
[1769163495439,0.8584097,2929.1,2927.6,3.51122172]
[1769163495643,0.8584097,2929.0,2927.6,3.51122172]
[1769163495845,0.8584097,2928.9,2927.6,3.51122172]
[1769163496040,3.87503652,2929.3,2927.6,3.51122172]
[1769163496242,4.56119818,2929.2,2927.6,3.51122172]
[1769163496540,0.85708166,2929.1,2927.6,3.51122172]
[1769163496742,0.85708166,2929.1,2927.6,5.96879112]
[1769163496937,3.87507652,2928.5,2927.5,0.00512724]
[1769163497143,4.56119818,2928.4,2927.5,0.00512724]
[1769163497443,0.85708166,2928.3,2927.5,0.00512724]
[1769163499043,0.85708166,2928.2,2927.5,0.00512724]
[1769163499245,3.87507652,2928.5,2927.5,0.00512724]
[1769163499442,3.70411652,2928.1,2926.7,5.8765694]
[1769163499641,0.85684327,2928.0,2926.8,5.243]
[1769163499846,3.70411652,2928.1,2926.8,5.243]
[1769163501248,0.00512724,2928.2,2926.9,4.42544089]
[1769163501440,0.85667422,2928.1,2926.9,4.42544089]
[1769163501643,0.00512724,2928.2,2926.9,4.42544089]
[1769163501843,0.85667277,2928.1,2927.0,3.51122172]
[1769163502042,0.00512724,2928.2,2927.1,5.96879112]
[1769163502249,0.00512724,2928.2,2927.2,3.51122172]
[1769163503148,0.00512724,2928.2,2927.3,5.259]
[1769163504044,3.87505652,2928.8,2927.3,0.91421917]
[1769163504252,4.5596401,2928.7,2927.5,0.00512724]
[1769163504443,0.85552358,2928.6,2927.5,0.00512724]
[1769163505347,4.5596401,2928.6,2927.5,0.00512724]
[1769163505543,0.85552358,2928.5,2927.5,0.00512724]
[1769163506947,0.85552358,2928.5,2927.5,3.51634896]
[1769163507155,6.31402892,2929.4,2927.5,3.51634896]
[1769163507365,0.85559568,2929.3,2927.5,3.51634896]
[1769163507548,0.85559568,2929.2,2927.5,3.51634896]
[1769163507749,0.85559568,2929.1,2927.5,3.51634896]
[1769163507952,0.85559568,2929.0,2927.5,3.51634896]
[1769163508146,0.85559568,2928.9,2927.5,3.51634896]
[1769163508451,0.85559568,2928.8,2927.5,3.51634896]
[1769163508650,3.70411652,2929.3,2927.5,3.51634896]
[1769163508845,0.85544533,2929.2,2927.5,3.51634896]
[1769163509045,0.85544533,2929.1,2927.5,5.97391836]
[1769163509246,0.85544533,2929.0,2927.5,5.97391836]
[1769163509451,3.70411652,2929.3,2927.5,5.97391836]
[1769163509452,0.85544533,2928.9,2927.5,5.97391836]
[1769163509640,3.70411652,2929.3,2927.5,5.97391836]
[1769163509844,0.8552588,2929.2,2927.6,3.51122172]
[1769163510050,0.8552588,2929.1,2927.6,3.51122172]
[1769163510246,0.8552588,2929.0,2927.6,3.51122172]
[1769163510447,0.8552588,2928.9,2927.6,3.51122172]
[1769163510651,3.70411652,2929.3,2927.6,3.51122172]
[1769163510851,4.55926737,2929.2,2927.6,3.51122172]
[1769163511050,0.85515085,2929.1,2927.7,8.693]
[1769163511250,0.85515085,2929.0,2927.7,8.693]
[1769163511453,0.85515085,2928.9,2927.7,8.693]
[1769163511644,3.70411652,2929.2,2927.7,12.20422172]
[1769163511844,4.31004863,2929.1,2927.5,2.46269664]
[1769163512051,4.31004863,2929.0,2927.6,8.694]
[1769163512350,0.85502583,2928.9,2927.6,8.694]
[1769163512551,3.4550228,2929.0,2927.6,8.694]
[1769163512758,0.85495225,2928.9,2927.6,8.694]
[1769163512946,3.4550228,2929.0,2927.6,8.694]
[1769163513259,0.85495221,2928.9,2927.6,8.694]
[1769163513553,3.4550228,2929.0,2927.6,8.694]
[1769163513754,0.8548552,2928.9,2927.6,8.694]
[1769163513955,3.4550228,2929.0,2927.6,8.694]
[1769163514149,0.85485714,2928.9,2927.6,8.694]
[1769163514455,0.17092,2929.3,2927.7,4.59593191]
[1769163514753,0.85475523,2929.2,2927.7,4.59593191]
[1769163514958,0.85475523,2929.1,2927.7,4.59593191]
[1769163515150,3.6259428,2929.3,2927.7,4.59593191]
[1769163515453,0.8546726,2929.2,2927.7,4.59593191]
[1769163515652,0.8546726,2929.1,2927.7,4.59593191]
[1769163515853,3.6259428,2929.3,2927.7,4.59593191]
[1769163516055,0.85467258,2929.2,2927.7,4.59593191]
[1769163516255,0.85467258,2929.1,2927.7,4.59593191]
[1769163516458,3.6259428,2929.3,2928.1,0.91421917]
[1769163517658,3.4550228,2929.1,2927.9,5.293]
[1769163521959,3.4550228,2929.1,2927.9,5.304]
[1769163524258,3.4550228,2929.1,2927.9,5.307]
[1769163528361,0.17093,2929.0,2927.7,2.4575694]
[1769163528566,3.4550228,2928.9,2927.6,5.312]
[1769163534168,3.4550228,2928.9,2927.6,7.7695694]
[1769163534360,3.4550228,2928.9,2927.6,5.312]
[1769163534664,3.4550228,2928.9,2927.6,8.99371274]
[1769163534865,0.17093,2929.0,2927.7,3.68171274]
[1769163535067,0.17093,2929.0,2927.7,6.13928214]
[1769163535263,0.85685862,2928.9,2927.7,6.13928214]
[1769163535573,3.6259528,2929.0,2927.6,7.7735694]
[1769163535865,3.4550228,2928.8,2927.6,7.7735694]
[1769163536567,3.4550228,2928.8,2927.6,7.7805694]
[1769163537163,3.4550228,2928.8,2927.6,2.4575694]
[1769163537371,3.4550228,2928.8,2927.6,7.7845694]
[1769163538071,3.4550228,2928.8,2927.6,2.4575694]
[1769163538264,3.4550228,2928.8,2927.6,7.7865694]
[1769163540471,0.17093,2929.0,2927.6,11.46828214]
[1769163540671,0.85708543,2928.9,2927.6,11.46828214]
[1769163540870,0.17093,2929.0,2927.6,11.46828214]
[1769163541172,0.85707054,2928.9,2927.7,3.68171274]
[1769163541372,0.17093,2929.0,2927.7,3.68171274]
[1769163541673,0.85706289,2928.9,2927.7,3.68171274]
[1769163541869,0.17093,2929.0,2927.7,3.68171274]
[1769163542069,0.85706268,2928.9,2927.7,3.68171274]
[1769163542270,0.17093,2929.0,2927.7,3.68171274]
[1769163542472,0.8570584,2928.9,2927.7,3.68171274]
[1769163542673,0.17093,2929.0,2927.7,3.68171274]
[1769163542872,0.85705839,2928.9,2927.7,3.68171274]
[1769163543072,0.17093,2929.0,2927.7,3.68171274]
[1769163543275,0.85703668,2928.9,2927.7,3.68171274]
[1769163543465,0.17093,2929.0,2927.7,3.68171274]
[1769163543760,0.85705121,2928.9,2927.7,3.68171274]
[1769163543963,0.17093,2929.0,2927.8,3.44317194]
[1769163544163,0.85703096,2928.9,2927.8,3.44317194]
[1769163544370,0.17093,2929.0,2927.8,3.44317194]
[1769163544670,3.4550228,2929.2,2927.8,5.90074134]
[1769163544969,0.85701754,2929.1,2927.8,5.90074134]
[1769163545170,0.85701754,2929.0,2927.8,5.90074134]
[1769163545371,3.4550228,2929.2,2927.8,5.90074134]
[1769163545563,4.52812796,2929.1,2927.8,3.44317194]
[1769163545763,4.52812796,2929.1,2927.7,2.4575694]
[1769163545764,0.85701691,2929.0,2927.7,2.4575694]
[1769163547175,0.85701691,2929.0,2927.8,2.4575694]
[1769163547376,0.85701691,2929.0,2927.9,5.343]
[1769163548778,0.85701691,2929.0,2927.7,2.4575694]
[1769163549076,4.52812796,2929.0,2927.8,5.345]
[1769163549376,4.52812796,2928.9,2927.7,5.345]
[1769163549578,4.52812796,2928.8,2927.7,5.345]
[1769163549876,0.85701691,2928.7,2927.7,5.345]
[1769163553279,0.85701691,2928.7,2927.5,0.91919184]
[1769163553576,4.52812796,2928.7,2927.5,6.27219184]
[1769163553777,0.85701691,2928.6,2927.5,6.27219184]
[1769163553980,3.67111105,2928.7,2927.5,6.27219184]
[1769163554274,0.85721762,2928.6,2927.5,6.27219184]
[1769163554469,3.67111105,2928.7,2927.5,0.91919184]
[1769163554675,5.44235483,2928.6,2927.5,0.00512724]
[1769163554976,0.85717918,2928.5,2927.5,0.00512724]
[1769163557270,4.58517565,2928.3,2927.1,2.4575694]
[1769163557470,0.85710542,2928.2,2927.0,10.6165694]
[1769163557782,0.17096,2928.5,2927.2,0.9140646]
[1769163557977,0.85710418,2928.4,2927.2,0.9140646]
[1769163558173,0.85710418,2928.4,2927.0,14.16200709]
[1769163558174,0.85710418,2928.3,2927.5,0.9140646]
[1769163558478,0.17096,2928.5,2927.5,0.9140646]
[1769163558680,0.00512724,2928.2,2927.5,0.9140646]
[1769163560181,0.00512724,2928.2,2927.2,0.9140646]
[1769163560374,0.00512724,2928.2,2926.9,6.91707169]
[1769163560575,0.00512724,2928.2,2927.0,5.36]
[1769163560973,0.00512724,2928.2,2927.2,0.9140646]
[1769163567478,3.67623829,2928.2,2926.9,0.9140646]
[1769163567683,3.67623829,2928.2,2926.9,5.367]
[1769163568182,3.67623829,2928.2,2926.9,5.368]
[1769163570188,0.171,2927.9,2926.7,2.4575694]
[1769163570380,0.171,2927.9,2926.5,3.08526866]
[1769163570381,0.9140646,2927.7,2926.5,5.374]
[1769163570889,3.84211105,2927.9,2926.5,5.375]
[1769163573077,3.84211105,2927.9,2926.3,6.791634]
[1769163573285,3.84211105,2927.9,2926.5,5.382]
[1769163576887,3.62087893,2927.6,2926.3,0.9140646]
[1769163579085,4.53494353,2927.4,2926.2,0.00318168]
[1769163579381,3.62087893,2927.3,2926.2,0.00318168]
[1769163580190,4.53494353,2927.1,2926.2,0.00318168]
[1769163580390,3.62087893,2927.0,2926.2,0.00318168]
[1769163580988,3.62087893,2927.4,2926.3,0.9140646]
[1769163581188,3.524067,2927.9,2926.6,0.9140646]
[1769163581189,3.62087893,2927.8,2926.6,0.9140646]
[1769163581390,0.85507294,2927.7,2926.6,0.9140646]
[1769163581590,3.62087893,2927.8,2926.6,0.9140646]
[1769163581787,0.85502317,2927.7,2926.6,0.9140646]
[1769163581995,3.62087893,2927.8,2926.6,0.9140646]
[1769163582194,0.85502056,2927.7,2926.6,0.9140646]
[1769163582393,3.62087893,2927.8,2926.6,0.9140646]
[1769163582596,0.8550646,2927.7,2926.6,0.9140646]
[1769163582799,3.62087893,2927.8,2926.6,0.9140646]
[1769163583000,0.85506455,2927.7,2926.6,0.9140646]
[1769163583204,3.62087893,2927.8,2926.6,0.9140646]
[1769163583395,0.85506437,2927.7,2926.6,0.9140646]
[1769163583594,3.62087893,2927.8,2926.6,0.9140646]
[1769163583803,0.85511291,2927.7,2926.6,0.9140646]
[1769163584004,3.62087893,2927.8,2926.6,0.9140646]
[1769163584199,0.85511288,2927.7,2926.6,0.9140646]
[1769163584400,3.62087893,2927.8,2926.6,0.9140646]
[1769163584601,0.85519498,2927.7,2926.6,0.9140646]
[1769163584802,3.62087893,2927.8,2926.6,0.9140646]
[1769163585005,0.85519511,2927.7,2926.6,0.9140646]
[1769163585206,3.62087893,2927.8,2926.6,0.9140646]
[1769163585408,0.85518987,2927.7,2926.6,0.9140646]
[1769163585705,3.62087893,2927.8,2926.6,0.9140646]
[1769163588307,3.62087893,2927.4,2926.2,0.00318168]
[1769163593611,3.62087893,2927.4,2926.4,0.9140646]
[1769163594608,0.17101,2927.6,2926.4,0.9140646]
[1769163595315,0.85914465,2927.5,2926.4,0.9140646]
[1769163595515,0.17101,2927.6,2926.4,0.9140646]
[1769163595715,0.85918157,2927.5,2926.4,0.9140646]
[1769163595916,0.17101,2927.6,2926.4,0.9140646]
[1769163596215,0.8591816,2927.5,2926.4,0.9140646]
[1769163596413,0.17101,2927.6,2926.4,0.9140646]
[1769163596611,0.85942573,2927.5,2926.4,0.9140646]
[1769163596815,0.17101,2927.6,2926.4,0.9140646]
[1769163597011,0.85942578,2927.5,2926.4,0.9140646]
[1769163597212,0.17101,2927.6,2926.4,0.9140646]
[1769163597518,0.85970984,2927.5,2926.4,0.9140646]
[1769163597714,0.17101,2927.6,2926.4,0.9140646]
[1769163597915,0.85970982,2927.5,2926.4,0.9140646]
[1769163598116,0.17101,2927.6,2926.4,0.9140646]
[1769163598316,0.85970979,2927.5,2926.4,0.9140646]
[1769163598517,0.85970979,2927.4,2926.4,0.9140646]
[1769163598812,0.17101,2927.6,2926.7,0.9140646]
[1769163599017,0.85997265,2927.5,2926.7,0.9140646]
[1769163599317,0.86030212,2927.4,2926.7,0.9140646]
[1769163599519,0.17101,2927.6,2926.7,0.9140646]
[1769163599823,0.86030217,2927.5,2926.7,0.9140646]
[1769163600016,0.86030217,2927.4,2926.7,0.9140646]
[1769163600217,0.17101,2927.6,2926.7,0.9140646]
[1769163600413,0.86038882,2927.5,2926.7,0.9140646]
[1769163600622,0.86038882,2927.4,2926.7,0.9140646]
[1769163600814,3.62087893,2927.8,2926.7,0.9140646]
[1769163601015,0.86037175,2927.7,2926.7,0.9140646]
[1769163601219,0.86037175,2927.6,2926.7,0.9140646]
[1769163601522,3.62087893,2927.8,2926.7,0.9140646]
[1769163601819,0.86036944,2927.7,2926.7,0.9140646]
[1769163602016,0.17099,2928.1,2926.7,0.9140646]
[1769163602214,0.86028375,2928.0,2926.7,0.9140646]
[1769163602415,0.86028375,2927.9,2926.7,0.9140646]
[1769163602611,0.86028375,2927.8,2926.7,0.9140646]
[1769163602817,0.86028375,2927.7,2926.7,0.9140646]
[1769163603117,3.65460899,2928.0,2926.7,0.9140646]
[1769163603421,0.86026814,2927.9,2926.7,0.9140646]
[1769163603623,0.86026814,2927.8,2926.7,0.9140646]
[1769163603814,3.65460899,2928.0,2926.7,0.9140646]
[1769163603815,0.86026814,2927.7,2926.7,0.9140646]
[1769163604010,3.65460899,2928.0,2926.7,0.9140646]
[1769163604215,0.86024468,2927.9,2926.7,0.9140646]
[1769163604421,3.65460899,2928.0,2926.7,0.9140646]
[1769163604422,0.86024468,2927.8,2926.7,0.9140646]
[1769163604720,0.86024468,2927.7,2926.7,0.9140646]
[1769163604924,3.65460899,2928.0,2926.7,0.9140646]
[1769163605122,0.86026905,2927.9,2926.7,0.9140646]
[1769163605322,0.86026905,2927.8,2926.7,0.9140646]
[1769163605522,3.65460899,2928.0,2926.7,0.9140646]
[1769163605720,0.86022172,2927.9,2926.7,0.9140646]
[1769163605919,0.86022172,2927.8,2926.7,0.9140646]
[1769163606122,3.65460899,2928.0,2926.7,0.9140646]
[1769163606325,0.86016596,2927.9,2926.7,0.9140646]
[1769163606519,0.86016596,2927.8,2926.7,0.9140646]
[1769163606719,3.65460899,2928.0,2926.7,0.9140646]
[1769163607018,0.86016444,2927.9,2926.7,0.9140646]
[1769163607217,0.86016444,2927.8,2927.3,0.9140646]
[1769163607420,0.00512724,2928.2,2927.3,0.9140646]
[1769163607619,0.86006656,2928.1,2927.3,0.9140646]
[1769163607821,0.00512724,2928.2,2927.3,0.9140646]
[1769163608020,0.86005964,2928.1,2927.3,0.9140646]
[1769163608216,0.00512724,2928.2,2927.3,0.9140646]
[1769163608420,0.85984326,2928.1,2927.3,0.9140646]
[1769163608620,0.00512724,2928.2,2927.3,0.9140646]
[1769163608923,0.85984209,2928.1,2927.3,0.9140646]
[1769163609123,0.00512724,2928.2,2927.3,0.9140646]
[1769163611824,0.00512724,2928.2,2927.6,0.9140646]
[1769163612028,0.00512724,2928.2,2927.3,0.9140646]
[1769163613126,0.00512724,2928.2,2927.1,5.38]
[1769163613427,3.67858751,2928.2,2927.1,5.38]
[1769163619026,0.00512724,2928.2,2927.1,8.98667217]
[1769163619335,0.00512724,2928.2,2927.2,3.60667217]
[1769163624928,0.00512724,2928.2,2927.1,8.8]
[1769163628637,0.00512724,2928.2,2927.1,12.40667217]
[1769163629433,0.00512724,2928.2,2927.1,8.8]
[1769163631334,3.67858751,2928.2,2927.0,2.4575694]
[1769163631533,3.67858751,2928.2,2927.0,5.421]
[1769163633430,3.67858751,2928.2,2926.9,2.4575694]
[1769163633641,3.67858751,2928.2,2926.9,5.427]
[1769163634137,3.67858751,2928.2,2926.9,7.8845694]
[1769163636140,0.8585489,2928.1,2926.9,7.8845694]
[1769163636436,3.67858751,2928.2,2926.9,7.8845694]
[1769163637138,0.85883745,2928.1,2926.9,7.8845694]
[1769163637326,3.67858751,2928.2,2926.9,7.8845694]
[1769163637531,0.85883742,2928.1,2926.9,7.8915694]
[1769163637730,3.67858751,2928.2,2926.9,7.8915694]
[1769163637941,0.85883392,2928.1,2926.9,7.8915694]
[1769163638188,3.67858751,2928.2,2926.9,7.8915694]
[1769163638440,0.85890832,2928.1,2926.9,7.8915694]
[1769163638646,3.67858751,2928.2,2926.9,7.8915694]
[1769163638842,0.8589081,2928.1,2926.9,7.8915694]
[1769163639139,3.67858751,2928.2,2927.0,2.4575694]
[1769163639338,0.8589803,2928.1,2927.0,2.4575694]
[1769163639528,3.67858751,2928.2,2927.0,2.4575694]
[1769163639733,0.85898,2928.1,2927.0,2.4575694]
[1769163640032,3.67858751,2928.2,2927.0,2.4575694]
[1769163640226,0.85897087,2928.1,2927.0,2.4575694]
[1769163640428,3.67858751,2928.2,2927.0,2.4575694]
[1769163640631,0.85897084,2928.1,2927.0,2.4575694]
[1769163640837,3.67858751,2928.2,2926.9,7.8915694]
[1769163641039,0.85897113,2928.1,2926.9,7.8915694]
[1769163641238,3.67858751,2928.2,2926.9,7.8915694]
[1769163641540,0.00512724,2928.2,2927.1,3.61755977]
[1769163641740,0.00512724,2928.2,2927.1,6.07512917]
[1769163642238,0.00512724,2928.2,2927.2,6.9893827]
[1769163642439,0.00512724,2928.2,2927.3,6.07512917]
[1769163643040,0.17093,2929.0,2927.4,3.61755977]
[1769163643240,0.85873312,2928.9,2927.4,3.61755977]
[1769163643540,0.85873312,2928.8,2927.5,0.00512724]
[1769163643740,0.85873312,2928.7,2927.5,0.00512724]
[1769163643942,0.85873312,2928.6,2927.5,0.00512724]
[1769163644142,0.85873312,2928.5,2927.5,0.00512724]
[1769163644343,3.50865245,2928.9,2927.5,0.00512724]
[1769163644640,0.85863627,2928.8,2927.5,0.00512724]
[1769163644833,0.85863627,2928.7,2927.5,0.00512724]
[1769163645031,0.85863627,2928.6,2927.5,0.00512724]
[1769163645231,0.85863627,2928.5,2927.5,0.00512724]
[1769163645437,0.85863627,2928.4,2927.5,0.00512724]
[1769163645636,3.50865245,2928.9,2927.5,0.00512724]
[1769163645838,0.85855711,2928.8,2927.5,0.00512724]
[1769163646039,0.85855711,2928.7,2927.5,0.00512724]
[1769163646343,0.85855711,2928.6,2927.5,0.00512724]
[1769163646544,3.50865245,2928.9,2927.5,0.00512724]
[1769163646738,0.85844831,2928.8,2927.5,0.00512724]
[1769163646936,0.85844831,2928.7,2927.5,0.00512724]
[1769163647134,0.85844831,2928.6,2927.5,0.00512724]
[1769163647442,3.50865245,2928.9,2927.5,0.00512724]
[1769163647643,0.85828679,2928.8,2927.5,0.00512724]
[1769163647946,0.85828679,2928.7,2927.5,0.00512724]
[1769163648245,3.50865245,2928.9,2927.5,0.00512724]
[1769163648548,0.85815182,2928.8,2927.5,0.00512724]
[1769163648748,0.85815182,2928.7,2927.5,0.00512724]
[1769163649046,3.50865245,2928.9,2927.5,0.00512724]
[1769163649345,0.85796777,2928.8,2927.5,0.00512724]
[1769163649542,0.85796777,2928.7,2927.5,0.00512724]
[1769163649743,3.50865245,2928.9,2927.5,0.00512724]
[1769163649945,4.36662051,2928.8,2927.5,5.45412724]
[1769163650143,0.85796806,2928.7,2927.5,5.45412724]
[1769163650546,4.36662051,2928.7,2927.5,5.45412724]
[1769163650849,3.50865245,2928.7,2927.5,5.45412724]
[1769163657753,3.50865245,2928.7,2927.5,5.46812724]
[1769163665361,3.50865245,2928.7,2927.5,0.00512724]
[1769163665563,3.50865245,2928.7,2927.6,5.48]
[1769163668561,3.50865245,2928.7,2927.5,0.00512724]
[1769163668862,3.49288603,2928.3,2926.9,9.80216961]
[1769163669164,3.49288603,2928.1,2926.9,2.4505424]
[1769163669367,3.49288603,2928.1,2926.8,11.1215424]
[1769163670972,3.49288603,2928.1,2926.7,2.4505424]
[1769163671264,3.49288603,2928.1,2926.8,5.492]
[1769163674866,3.49288603,2928.1,2926.9,0.91441338]
[1769163676473,3.49288603,2928.1,2927.2,0.91441338]
[1769163681876,3.49288603,2928.1,2927.0,5.501]
[1769163688576,3.49288603,2928.1,2926.9,0.91441338]
[1769163688784,3.49288603,2928.1,2926.9,6.42741338]
[1769163689084,3.49288603,2928.1,2926.9,0.91441338]
[1769163689285,3.49288603,2928.1,2926.9,6.42841338]
[1769163690783,3.49288603,2928.0,2926.7,2.4505424]
[1769163690979,3.49288603,2928.0,2926.6,2.4505424]
[1769163691180,3.49288603,2928.0,2926.7,0.91441338]
[1769163695186,3.49288603,2928.0,2926.7,3.36495578]
[1769163698087,3.49288603,2928.0,2926.8,2.4505424]
[1769163698386,0.85937784,2927.9,2926.8,2.4505424]
[1769163698589,3.49288603,2928.0,2926.8,2.4505424]
[1769163698780,0.85938385,2927.9,2926.8,2.4505424]
[1769163698981,3.49288603,2928.0,2926.8,2.4505424]
[1769163699180,0.85938295,2927.9,2926.8,2.4505424]
[1769163699380,3.49288603,2928.0,2926.8,2.4505424]
[1769163702489,3.63457608,2927.9,2926.8,2.4505424]
[1769163703088,0.17099,2928.1,2927.1,0.91441338]
[1769163703285,4.49390256,2928.0,2926.9,2.4505424]
[1769163703489,3.63457608,2927.8,2926.6,7.9855424]
[1769163703690,3.63457608,2927.8,2926.6,2.4505424]
[1769163703885,3.63457608,2927.8,2926.6,7.9855424]
[1769163705791,3.63457608,2927.8,2926.8,0.91441338]
[1769163710190,0.17099,2928.0,2927.1,0.91441338]
[1769163710389,3.63457608,2928.3,2927.4,0.91441338]
[1769163710585,0.85901619,2928.2,2927.4,0.91441338]
[1769163710785,3.63457608,2928.3,2927.4,0.91441338]
[1769163710990,0.85901409,2928.2,2927.4,0.91441338]
[1769163711295,3.63457608,2928.3,2927.4,0.91441338]
[1769163711486,0.85895695,2928.2,2927.4,0.91441338]
[1769163711793,3.63457608,2928.3,2927.4,0.91441338]
[1769163711994,0.8589561,2928.2,2927.4,0.91441338]
[1769163712291,3.63457608,2928.3,2927.4,0.91441338]
[1769163712895,3.63457608,2928.3,2927.0,2.4505424]
[1769163713194,3.63457608,2928.1,2926.9,8.90995578]
[1769163713392,3.63457608,2928.1,2927.0,2.4505424]
[1769163716391,3.63457608,2928.1,2926.9,0.91441338]
[1769163716392,3.63457608,2928.1,2926.9,8.91795578]
[1769163718598,3.63457608,2928.1,2926.9,3.36495578]
[1769163720301,3.63457608,2928.0,2926.9,2.4505424]
[1769163720606,3.63457608,2928.0,2926.8,8.0125424]
[1769163720792,3.63457608,2928.0,2926.8,2.4505424]
[1769163721097,3.63457608,2928.0,2926.7,2.4505424]
[1769163721398,0.86042189,2927.9,2926.7,8.0135424]
[1769163721593,3.63457608,2928.0,2926.7,8.0135424]
[1769163724597,3.63457608,2928.0,2926.9,0.91441338]
[1769163726497,4.6361449,2927.4,2926.7,2.4505424]
[1769163726799,4.6361449,2927.4,2926.2,2.45372408]
[1769163727699,3.72173152,2927.2,2926.2,0.00318168]
[1769163740710,3.89277152,2927.2,2926.2,0.00318168]
[1769163744911,3.72173152,2927.2,2926.2,0.00318168]
[1769163767229,0.17103,2927.4,2926.2,0.00318168]
[1769163767421,3.70859468,2927.9,2926.5,2.4505424]
[1769163767718,3.70859468,2927.7,2926.5,2.4505424]
[1769163767926,3.70859468,2927.5,2926.4,2.4505424]
[1769163773829,3.87959468,2927.8,2926.4,2.4505424]
[1769163774130,4.56759569,2927.7,2926.4,2.4505424]
[1769163774328,3.70859468,2927.7,2926.4,2.4505424]
[1769163775032,3.70859468,2927.7,2926.4,8.0565424]
[1769163794444,3.70859468,2927.7,2926.5,2.4505424]
[1769163794937,3.70859468,2927.7,2926.7,0.91451173]
[1769163795340,3.67799196,2928.1,2927.0,0.91451173]
[1769163795540,0.85955889,2928.0,2927.0,0.91451173]
[1769163795843,0.85955889,2927.9,2927.0,0.91451173]
[1769163796033,3.67799196,2928.1,2927.0,0.91451173]
[1769163796240,0.85955776,2928.0,2927.0,0.91451173]
[1769163796541,3.67799196,2928.1,2927.3,0.91451173]
[1769163798344,0.17098,2928.3,2927.3,0.91451173]
[1769163801349,0.00512724,2928.4,2927.3,0.91451173]